fUSD/lending_fUSD_20251210
["ID","MTS","AMOUNT","RATE_DAILY","PERIOD"]
[398100315,1765365032039,-176.0636777,0.00013698,2]
[398100316,1765365032048,-333.9363223,0.00013698,2]
[398100317,1765365032058,-166.0636777,0.00013698,2]
[398100318,1765365032067,-500.0,0.00013698,2]
[398100319,1765365032075,-500.0,0.00013698,2]
[398100320,1765365032085,-483.9363223,0.00013698,2]
[398100321,1765365032096,-16.0636777,0.00013698,2]
[398100322,1765365032105,-500.0,0.00013698,2]
[398100323,1765365032114,-436.1,0.00013698,2]
[398100324,1765365032123,-500.0,0.00013698,2]
[398100325,1765365032132,-500.0,0.00013698,2]
[398100326,1765365032141,-500.0,0.00013698,2]
[398100327,1765365032150,-500.0,0.00013698,2]
[398100328,1765365032159,-500.0,0.00013698,2]
[398100329,1765365032168,-500.0,0.00013698,2]
[398100330,1765365032177,-500.0,0.00013698,2]
[398100331,1765365032186,-592.15,0.00013698,2]
[398100332,1765365032195,-319.06,0.00013698,2]
[398100333,1765365032204,-500.0,0.00013698,2]
[398100334,1765365032214,-500.0,0.00013698,2]
[398100336,1765365032223,-500.0,0.00013698,2]
[398100338,1765365032232,-500.0,0.00013698,2]
[398100340,1765365032242,-500.0,0.00013698,2]
[398100342,1765365032251,-957.74,0.00013698,2]
[398100344,1765365032260,-500.0,0.00013698,2]
[398100346,1765365032269,-363.44914534,0.00013698,2]
[398100347,1765365032278,-500.0,0.00013698,2]
[398100349,1765365032287,-150.38,0.00013698,2]
[398100351,1765365032297,-500.0,0.00013698,2]
[398100353,1765365032306,-493.3,0.00013698,2]
[398100354,1765365032315,-587.32,0.00013698,2]
[398100355,1765365032324,-624.78,0.00013698,2]
[398100356,1765365032333,-500.0,0.00013698,2]
[398100357,1765365032342,-500.0,0.00013698,2]
[398100358,1765365032352,-500.0,0.00013698,2]
[398100359,1765365032362,-500.0,0.00013698,2]
[398100360,1765365032371,-500.0,0.00013698,2]
[398100361,1765365032381,-437.32,0.00013698,2]
[398100362,1765365032394,-500.0,0.00013698,2]
[398100363,1765365032403,-500.0,0.00013698,2]
[398100364,1765365032412,-500.0,0.00013698,2]
[398100365,1765365032421,-500.0,0.00013698,2]
[398100366,1765365032434,-181.12,0.00013698,2]
[398100367,1765365032443,-500.0,0.00013698,2]
[398100368,1765365032453,-282.61717696,0.00013698,2]
[398100369,1765365037623,-217.38282304,0.00013698,2]
[398100370,1765365037633,-195.96550657,0.00013698,2]
[398100371,1765365037643,-189.95267737,0.00013698,2]
[398100372,1765365037655,-310.04732263,0.00013698,2]
[398100373,1765365037665,-500.0,0.00013698,2]
[398100374,1765365037675,-500.0,0.00013698,2]
[398100375,1765365037684,-500.0,0.00013698,2]
[398100376,1765365037694,-500.0,0.00013698,2]
[398100377,1765365037703,-241.58,0.00013698,2]
[398100378,1765365037712,-500.0,0.00013698,2]
[398100379,1765365037720,-500.0,0.00013698,2]
[398100380,1765365037730,-238.1,0.00013698,2]
[398100381,1765365037739,-500.0,0.00013698,2]
[398100382,1765365037749,-500.0,0.00013698,2]
[398100383,1765365037758,-500.0,0.00013698,2]
[398100384,1765365037767,-500.0,0.00013698,2]
[398100385,1765365037777,-500.0,0.00013698,2]
[398100386,1765365037787,-500.0,0.00013698,2]
[398100387,1765365037797,-500.0,0.00013698,2]
[398100388,1765365037806,-500.0,0.00013972,2]
[398100389,1765365037815,-500.0,0.00013972,2]
[398100390,1765365037825,-623.81,0.00013972,2]
[398100391,1765365037834,-500.0,0.00013972,2]
[398100392,1765365037843,-500.0,0.00013972,2]
[398100393,1765365037853,-500.0,0.00013972,2]
[398100394,1765365037863,-500.0,0.00013972,2]
[398100395,1765365037873,-500.0,0.00013972,2]
[398100396,1765365037883,-500.0,0.00013972,2]
[398100397,1765365037894,-500.0,0.00013972,2]
[398100398,1765365037906,-500.0,0.00013972,2]
[398100399,1765365037917,-500.0,0.00013972,2]
[398100400,1765365037929,-18.74083588,0.00013972,2]
[398100465,1765365039700,-500.0,0.00013698,2]
[398100466,1765365039711,-481.25916412,0.00013972,2]
[398100467,1765365039720,-500.0,0.00013972,2]
[398100468,1765365039730,-500.0,0.00013972,2]
[398100469,1765365039739,-500.0,0.00013972,2]
[398100470,1765365039748,-833.33,0.00013972,2]
[398100471,1765365039758,-500.0,0.00013972,2]
[398100472,1765365039767,-500.0,0.00013972,2]
[398100473,1765365039776,-656.72,0.00013972,2]
[398100474,1765365039786,-500.0,0.00013972,2]
[398100475,1765365039795,-551.8,0.00013972,2]
[398100476,1765365039805,-500.0,0.00013972,2]
[398100477,1765365039814,-500.0,0.00013972,2]
[398100478,1765365039823,-500.0,0.00013972,2]
[398100479,1765365039833,-500.0,0.00013972,2]
[398100480,1765365039842,-390.48,0.00013972,2]
[398100481,1765365039851,-233.9857075,0.00013972,2]
[398100482,1765365039862,-500.0,0.00013972,2]
[398100483,1765365039871,-395.84,0.00013972,2]
[398100484,1765365039880,-635.94,0.00013972,2]
[398100485,1765365039891,-500.0,0.00013972,2]
[398100486,1765365039901,-500.0,0.00013972,2]
[398100487,1765365039911,-500.0,0.00013972,2]
[398100488,1765365039921,-500.0,0.00013972,2]
[398100489,1765365039931,-500.0,0.00013972,2]
[398100490,1765365039940,-957.74,0.00013972,2]
[398100491,1765365039950,-389.40746467,0.00013972,2]
[398100492,1765365039981,-557.06,0.00013698,2]
[398100493,1765365039990,-202.57253533,0.00013972,2]
[398100494,1765365039999,-500.0,0.00013972,2]
[398100495,1765365040009,-1880.5048211,0.00013972,2]
[398100496,1765365040019,-277.34,0.00013972,2]
[398100497,1765365040028,-587.32,0.00013972,2]
[398100502,1765365040208,-624.78,0.00013972,2]
[398100503,1765365040259,-500.0,0.00013972,2]
[398100504,1765365040269,-200.0,0.00013972,2]
[398100505,1765365040279,-500.0,0.00013972,2]
[398100506,1765365040288,-199.05,0.00013972,2]
[398100507,1765365040297,-500.0,0.00013972,2]
[398100508,1765365040307,-500.0,0.00013972,2]
[398100509,1765365040316,-500.0,0.00013972,2]
[398100510,1765365040326,-500.0,0.00013972,2]
[398100511,1765365040335,-207.79,0.00013972,2]
[398100512,1765365040345,-500.0,0.00013972,2]
[398100513,1765365040354,-500.0,0.00013972,2]
[398100515,1765365040363,-500.0,0.00013972,2]
[398100517,1765365040372,-500.0,0.00013972,2]
[398100518,1765365040382,-570.18,0.00013972,2]
[398100519,1765365040391,-500.0,0.00013972,2]
[398100520,1765365040401,-500.0,0.00013972,2]
[398100521,1765365040410,-735.35288536,0.00014003,2]
[398100522,1765365040424,-264.64711464,0.00014003,2]
[398100523,1765365040437,-200.0,0.00014112,2]
[398100524,1765365040449,-1092.73756465,0.00014146,2]
[398100525,1765365040461,-477630.62303535,0.00014146,2]
[398100526,1765365040471,-250.0,0.00014181,2]
[398100527,1765365040482,-500.0,0.00014245,2]
[398100528,1765365040492,-500.0,0.00014246,2]
[398100529,1765365040501,-500.0,0.00014246,2]
[398100530,1765365040510,-601.02,0.00014246,2]
[398100531,1765365040522,-500.0,0.00014246,2]
[398100532,1765365040531,-500.0,0.00014246,2]
[398100533,1765365040540,-541.28,0.00014246,2]
[398100534,1765365040549,-500.0,0.00014246,2]
[398100535,1765365040558,-500.0,0.00014246,2]
[398100536,1765365040568,-500.0,0.00014246,2]
[398100537,1765365040577,-500.0,0.00014246,2]
[398100538,1765365040587,-500.0,0.00014246,2]
[398100539,1765365040598,-500.0,0.00014246,2]
[398100540,1765365040608,-500.0,0.00014246,2]
[398100541,1765365040617,-500.0,0.00014246,2]
[398100542,1765365040626,-220.54,0.00014246,2]
[398100543,1765365040636,-211.32,0.00014246,2]
[398100544,1765365040646,-500.0,0.00014246,2]
[398100545,1765365040655,-500.0,0.00014246,2]
[398100546,1765365040664,-500.0,0.00014246,2]
[398100547,1765365040673,-500.0,0.00014246,2]
[398100548,1765365040683,-500.0,0.00014246,2]
[398100549,1765365040692,-500.0,0.00014246,2]
[398100550,1765365040702,-558.89,0.00014246,2]
[398100551,1765365040712,-500.0,0.00014246,2]
[398100552,1765365040722,-500.0,0.00014246,2]
[398100553,1765365040732,-500.0,0.00014246,2]
[398100554,1765365040742,-581.58070967,0.00014246,2]
[398100555,1765365040752,-500.0,0.00014246,2]
[398100556,1765365040762,-500.0,0.00014246,2]
[398100557,1765365040773,-500.0,0.00014246,2]
[398100558,1765365040783,-500.0,0.00014246,2]
[398100559,1765365040792,-500.0,0.00014246,2]
[398100560,1765365040802,-500.0,0.00014246,2]
[398100561,1765365040811,-500.0,0.00014246,2]
[398100562,1765365040820,-500.0,0.00014246,2]
[398100563,1765365040830,-500.0,0.00014246,2]
[398100564,1765365040840,-500.0,0.00014246,2]
[398100565,1765365040849,-500.0,0.00014246,2]
[398100566,1765365040859,-210.35876776,0.00014246,2]
[398100567,1765365040868,-450.0,0.00014246,2]
[398100568,1765365040878,-500.0,0.00014246,2]
[398100569,1765365040888,-500.0,0.00014246,2]
[398100570,1765365040897,-500.0,0.00014246,2]
[398100571,1765365040907,-500.0,0.00014246,2]
[398100572,1765365040917,-509.42791286,0.00014246,2]
[398100573,1765365040927,-500.0,0.00014246,2]
[398100574,1765365040936,-209.62246633,0.00014246,2]
[398100575,1765365040946,-197.28448755,0.00014246,2]
[398100576,1765365040955,-500.0,0.00014246,2]
[398100577,1765365040964,-500.0,0.00014246,2]
[398100578,1765365040973,-500.0,0.00014246,2]
[398100579,1765365040983,-500.0,0.00014246,2]
[398100580,1765365040992,-500.0,0.00014246,2]
[398100581,1765365041002,-500.0,0.00014246,2]
[398100582,1765365041011,-500.0,0.00014246,2]
[398100583,1765365041019,-500.0,0.00014246,2]
[398100584,1765365041029,-500.0,0.00014246,2]
[398100585,1765365041038,-500.0,0.00014246,2]
[398100586,1765365041047,-500.0,0.00014246,2]
[398100587,1765365041057,-500.0,0.00014246,2]
[398100588,1765365041066,-646.72,0.00014246,2]
[398100589,1765365041076,-443.11804742,0.00014246,2]
[398100590,1765365041085,-500.0,0.00014246,2]
[398100591,1765365041095,-500.0,0.00014246,2]
[398100592,1765365041105,-500.0,0.00014246,2]
[398100593,1765365041115,-500.0,0.00014246,2]
[398100594,1765365041125,-585.46,0.00014246,2]
[398100595,1765365041135,-500.0,0.00014246,2]
[398100596,1765365041145,-500.0,0.00014246,2]
[398100597,1765365041155,-1007.16,0.00014246,2]
[398100598,1765365041165,-500.0,0.00014246,2]
[398100599,1765365041174,-500.0,0.00014246,2]
[398100600,1765365041183,-500.0,0.00014246,2]
[398100601,1765365041193,-500.0,0.00014246,2]
[398100602,1765365041202,-500.0,0.00014246,2]
[398100603,1765365041212,-500.0,0.00014246,2]
[398100604,1765365041222,-500.0,0.00014246,2]
[398100605,1765365041232,-500.0,0.00014246,2]
[398100606,1765365041242,-500.0,0.00014246,2]
[398100607,1765365041251,-500.0,0.00014246,2]
[398100608,1765365041261,-500.0,0.00014246,2]
[398100609,1765365041272,-500.0,0.00014246,2]
[398100610,1765365041281,-500.0,0.00014246,2]
[398100611,1765365041291,-500.0,0.00014246,2]
[398100612,1765365041301,-164.1,0.00014246,2]
[398100613,1765365041311,-500.0,0.00014246,2]
[398100614,1765365041322,-500.0,0.00014246,2]
[398100615,1765365041332,-500.0,0.00014246,2]
[398100616,1765365041341,-500.0,0.00014246,2]
[398100617,1765365041350,-500.0,0.00014246,2]
[398100618,1765365041359,-522.28,0.00014246,2]
[398100619,1765365041369,-500.0,0.00014246,2]
[398100620,1765365041377,-500.0,0.00014246,2]
[398100621,1765365041387,-500.0,0.00014246,2]
[398100622,1765365041397,-500.0,0.00014246,2]
[398100623,1765365041406,-500.0,0.00014246,2]
[398100624,1765365041415,-500.0,0.00014246,2]
[398100625,1765365041425,-172.21532225,0.00014246,2]
[398100626,1765365041436,-507.51,0.00014246,2]
[398100627,1765365041447,-985.23,0.00014246,2]
[398100628,1765365041457,-292.77987106,0.00014246,2]
[398100629,1765365041466,-551.86,0.00014246,2]
[398100630,1765365041475,-500.0,0.00014246,2]
[398100631,1765365041484,-374.06,0.00014246,2]
[398100632,1765365041494,-500.0,0.00014246,2]
[398100633,1765365041503,-614.17,0.00014246,2]
[398100634,1765365041513,-239.59686024,0.00014246,2]
[398100635,1765365041523,-500.0,0.00014246,2]
[398100636,1765365041532,-211.46,0.00014246,2]
[398100637,1765365041542,-500.0,0.00014246,2]
[398100638,1765365041551,-500.0,0.00014246,2]
[398100639,1765365041560,-500.0,0.00014246,2]
[398100640,1765365041569,-500.0,0.00014246,2]
[398100641,1765365041579,-238.53253014,0.00014246,2]
[398100642,1765365041589,-500.0,0.00014246,2]
[398100643,1765365041599,-500.0,0.00014246,2]
[398100644,1765365041608,-520.52,0.00014246,2]
[398100645,1765365041618,-500.0,0.00014246,2]
[398100646,1765365041627,-500.0,0.00014246,2]
[398100647,1765365041636,-500.0,0.00014246,2]
[398100648,1765365041645,-500.0,0.00014246,2]
[398100649,1765365041654,-500.0,0.00014246,2]
[398100650,1765365041663,-500.0,0.00014246,2]
[398100651,1765365041672,-381.61,0.00014246,2]
[398100652,1765365041681,-500.0,0.00014246,2]
[398100653,1765365041691,-500.0,0.00014246,2]
[398100654,1765365041700,-500.0,0.00014246,2]
[398100655,1765365041709,-500.0,0.00014246,2]
[398100656,1765365041719,-500.0,0.00014246,2]
[398100657,1765365041728,-500.0,0.00014246,2]
[398100658,1765365041738,-500.0,0.00014246,2]
[398100659,1765365041747,-261.62823373,0.00014246,2]
[398100660,1765365041757,-340.92245459,0.00014246,2]
[398100661,1765365041766,-529.18,0.00014246,2]
[398100662,1765365041777,-500.0,0.00014246,2]
[398100663,1765365041786,-500.0,0.00014246,2]
[398100664,1765365041796,-500.0,0.00014246,2]
[398100665,1765365041805,-500.0,0.00014246,2]
[398100666,1765365041816,-500.0,0.00014246,2]
[398100667,1765365041825,-500.0,0.00014246,2]
[398100668,1765365041835,-500.0,0.00014246,2]
[398100669,1765365041844,-500.0,0.00014246,2]
[398100670,1765365041854,-500.0,0.00014246,2]
[398100671,1765365041863,-226.79594358,0.00014246,2]
[398100672,1765365041872,-390.12,0.00014246,2]
[398100673,1765365041882,-500.0,0.00014246,2]
[398100674,1765365041891,-500.0,0.00014246,2]
[398100675,1765365041901,-500.0,0.00014246,2]
[398100676,1765365041910,-500.0,0.00014246,2]
[398100677,1765365041920,-500.0,0.00014246,2]
[398100678,1765365041930,-500.0,0.00014246,2]
[398100679,1765365041939,-500.0,0.00014246,2]
[398100680,1765365041949,-515.36,0.00014246,2]
[398100681,1765365041959,-500.0,0.00014246,2]
[398100682,1765365041969,-500.0,0.00014246,2]
[398100683,1765365041978,-615.16,0.00014246,2]
[398100684,1765365041988,-500.0,0.00014246,2]
[398100685,1765365041998,-500.0,0.00014246,2]
[398100686,1765365042007,-500.0,0.00014246,2]
[398100687,1765365042016,-500.0,0.00014246,2]
[398100688,1765365042025,-500.0,0.00014246,2]
[398100689,1765365042035,-575.21,0.00014246,2]
[398100690,1765365042044,-511.87,0.00014246,2]
[398100691,1765365042054,-500.0,0.00014246,2]
[398100692,1765365042062,-459.84,0.00014246,2]
[398100693,1765365042072,-500.0,0.00014246,2]
[398100694,1765365042081,-270.4,0.00014246,2]
[398100695,1765365042091,-1490.1,0.00014246,2]
[398100696,1765365042101,-500.0,0.00014246,2]
[398100697,1765365042111,-500.0,0.00014246,2]
[398100698,1765365042120,-500.0,0.00014246,2]
[398100699,1765365042129,-1156.86,0.00014246,2]
[398100700,1765365042139,-565.18,0.00014246,2]
[398100701,1765365042148,-500.0,0.00014246,2]
[398100702,1765365042158,-500.0,0.00014246,2]
[398100703,1765365042168,-578.83610444,0.00014246,2]
[398100704,1765365042179,-604.6,0.00014246,2]
[398100705,1765365042188,-189.95,0.00014246,2]
[398100706,1765365042197,-500.0,0.00014246,2]
[398100707,1765365042207,-500.0,0.00014246,2]
[398100708,1765365042217,-289.63,0.00014246,2]
[398100709,1765365042226,-524.83,0.00014246,2]
[398100710,1765365042235,-432.77,0.00014246,2]
[398100711,1765365042245,-500.0,0.00014246,2]
[398100712,1765365042255,-500.0,0.00014246,2]
[398100713,1765365042264,-500.0,0.00014246,2]
[398100714,1765365042275,-535.22541871,0.00014246,2]
[398100715,1765365042284,-833.33,0.00014246,2]
[398100716,1765365042293,-500.0,0.00014246,2]
[398100717,1765365042302,-656.72,0.00014246,2]
[398100718,1765365042312,-500.0,0.00014246,2]
[398100719,1765365042321,-324.8,0.00014246,2]
[398100720,1765365042331,-500.0,0.00014246,2]
[398100721,1765365042340,-500.0,0.00014246,2]
[398100722,1765365042349,-500.0,0.00014246,2]
[398100723,1765365042359,-500.0,0.00014246,2]
[398100724,1765365042368,-500.0,0.00014246,2]
[398100725,1765365042377,-957.74,0.00014246,2]
[398100726,1765365042387,-500.0,0.00014246,2]
[398100729,1765365042396,-587.32,0.00014246,2]
[398100732,1765365042405,-624.78,0.00014246,2]
[398100734,1765365042415,-623.9,0.00014246,2]
[398100736,1765365042423,-303.89,0.00014246,2]
[398100738,1765365042434,-500.0,0.00014246,2]
[398100739,1765365042443,-646.2,0.00014246,2]
[398100740,1765365042453,-500.0,0.00014246,2]
[398100741,1765365042462,-500.0,0.00014246,2]
[398100742,1765365042471,-500.0,0.00014246,2]
[398100743,1765365042480,-500.0,0.00014246,2]
[398100744,1765365042489,-500.0,0.00014246,2]
[398100745,1765365042498,-500.0,0.00014246,2]
[398100746,1765365042509,-200.0,0.00014253,2]
[398100747,1765365042518,-200.0,0.00014395,2]
[398100748,1765365042528,-150.328,0.00014429,2]
[398100749,1765365042538,-609.62486523,0.00014508,2]
[398100750,1765365042549,-500.0,0.00014519,2]
[398100751,1765365042560,-500.0,0.00014519,2]
[398100752,1765365042569,-326.48,0.0001452,2]
[398100753,1765365042579,-437.13,0.0001452,2]
[398100754,1765365042590,-500.0,0.0001452,2]
[398100755,1765365042600,-210.16223237,0.0001452,2]
[398100756,1765365042611,-500.0,0.0001452,2]
[398100757,1765365042622,-387.28,0.0001452,2]
[398100758,1765365042631,-605.29,0.0001452,2]
[398100759,1765365042642,-500.0,0.0001452,2]
[398100760,1765365042651,-500.0,0.0001452,2]
[398100761,1765365042661,-500.0,0.0001452,2]
[398100762,1765365042670,-500.0,0.0001452,2]
[398100763,1765365042679,-266.58,0.0001452,2]
[398100764,1765365042688,-166.27650027,0.0001452,2]
[398100765,1765365042698,-500.0,0.0001452,2]
[398100766,1765365042707,-500.0,0.0001452,2]
[398100767,1765365042717,-500.0,0.0001452,2]
[398100768,1765365042726,-500.0,0.0001452,2]
[398100769,1765365042736,-500.0,0.0001452,2]
[398100770,1765365042746,-500.0,0.0001452,2]
[398100771,1765365042755,-500.0,0.0001452,2]
[398100772,1765365042763,-500.0,0.0001452,2]
[398100773,1765365042773,-500.0,0.0001452,2]
[398100774,1765365042782,-500.0,0.0001452,2]
[398100775,1765365042791,-500.0,0.0001452,2]
[398100776,1765365042800,-313.83,0.0001452,2]
[398100777,1765365042812,-500.0,0.0001452,2]
[398100778,1765365042824,-597.76,0.0001452,2]
[398100779,1765365042837,-1007.16,0.0001452,2]
[398100780,1765365042850,-172.27436139,0.0001452,2]
[398100781,1765365042863,-500.0,0.0001452,2]
[398100782,1765365042873,-500.0,0.0001452,2]
[398100783,1765365042883,-483.31,0.0001452,2]
[398100784,1765365042894,-500.0,0.0001452,2]
[398100785,1765365042906,-500.0,0.0001452,2]
[398100786,1765365042919,-500.0,0.0001452,2]
[398100787,1765365042930,-500.0,0.0001452,2]
[398100788,1765365042942,-985.23,0.0001452,2]
[398100789,1765365042954,-462.67,0.0001452,2]
[398100790,1765365042966,-500.0,0.0001452,2]
[398100792,1765365042979,-521.68764744,0.0001452,2]
[398100793,1765365042990,-520.52,0.0001452,2]
[398100794,1765365043002,-443.67,0.0001452,2]
[398100795,1765365043013,-500.0,0.0001452,2]
[398100796,1765365043024,-381.61,0.0001452,2]
[398100797,1765365043034,-500.0,0.0001452,2]
[398100798,1765365043046,-500.0,0.0001452,2]
[398100799,1765365043058,-500.0,0.0001452,2]
[398100800,1765365043069,-500.0,0.0001452,2]
[398100801,1765365043082,-399.62518047,0.0001452,2]
[398100802,1765365043096,-500.0,0.0001452,2]
[398100803,1765365043108,-257.86,0.0001452,2]
[398100804,1765365043121,-515.36,0.0001452,2]
[398100805,1765365043132,-500.0,0.0001452,2]
[398100806,1765365043144,-500.0,0.0001452,2]
[398100807,1765365043157,-500.0,0.0001452,2]
[398100808,1765365043168,-500.0,0.0001452,2]
[398100809,1765365043180,-575.21,0.0001452,2]
[398100810,1765365043191,-511.87,0.0001452,2]
[398100811,1765365043203,-500.0,0.0001452,2]
[398100812,1765365043215,-1490.1,0.0001452,2]
[398100813,1765365043228,-500.0,0.0001452,2]
[398100814,1765365043239,-229.54,0.0001452,2]
[398100815,1765365043250,-500.0,0.0001452,2]
[398100816,1765365043263,-1156.86,0.0001452,2]
[398100817,1765365043274,-565.18,0.0001452,2]
[398100818,1765365043286,-500.0,0.0001452,2]
[398100819,1765365043299,-500.0,0.0001452,2]
[398100820,1765365043311,-604.6,0.0001452,2]
[398100821,1765365043322,-500.0,0.0001452,2]
[398100822,1765365043334,-492.05,0.0001452,2]
[398100823,1765365043347,-500.0,0.0001452,2]
[398100824,1765365043360,-500.0,0.0001452,2]
[398100825,1765365043371,-500.0,0.0001452,2]
[398100826,1765365043381,-833.33,0.0001452,2]
[398100827,1765365043393,-172.82,0.0001452,2]
[398100828,1765365043403,-656.72,0.0001452,2]
[398100829,1765365043415,-500.0,0.0001452,2]
[398100830,1765365043425,-500.0,0.0001452,2]
[398100831,1765365043439,-233.8,0.0001452,2]
[398100832,1765365043451,-500.0,0.0001452,2]
[398100833,1765365043461,-522.6,0.0001452,2]
[398100834,1765365043473,-957.74,0.0001452,2]
[398100835,1765365043486,-500.0,0.0001452,2]
[398100836,1765365043498,-587.32,0.0001452,2]
[398100837,1765365043508,-624.78,0.0001452,2]
[398100838,1765365043517,-500.0,0.0001452,2]
[398100839,1765365043528,-500.0,0.0001452,2]
[398100840,1765365043538,-500.0,0.0001452,2]
[398100841,1765365043548,-500.0,0.0001452,2]
[398100842,1765365043559,-500.0,0.0001452,2]
[398100843,1765365043571,-500.0,0.0001452,2]
[398100844,1765365043585,-500.0,0.0001452,2]
[398100845,1765365043596,-200.0,0.00014539,2]
[398100846,1765365043607,-2530.05,0.00014541,2]
[398100847,1765365043616,-543.51044901,0.00014793,2]
[398100848,1765365043627,-500.0,0.00014793,2]
[398100849,1765365043637,-500.0,0.00014794,2]
[398100850,1765365043648,-500.0,0.00014794,2]
[398100851,1765365043658,-500.0,0.00014794,2]
[398100852,1765365043669,-500.0,0.00014794,2]
[398100853,1765365043681,-500.0,0.00014794,2]
[398100854,1765365043692,-500.0,0.00014794,2]
[398100855,1765365043704,-162.71,0.00014794,2]
[398100856,1765365043716,-500.0,0.00014794,2]
[398100857,1765365043728,-500.0,0.00014794,2]
[398100858,1765365043739,-500.0,0.00014794,2]
[398100859,1765365043751,-500.0,0.00014794,2]
[398100860,1765365043761,-500.0,0.00014794,2]
[398100861,1765365043772,-1007.16,0.00014794,2]
[398100862,1765365043783,-500.0,0.00014794,2]
[398100863,1765365043795,-500.0,0.00014794,2]
[398100864,1765365043806,-500.0,0.00014794,2]
[398100865,1765365043817,-500.0,0.00014794,2]
[398100866,1765365043829,-500.0,0.00014794,2]
[398100867,1765365043841,-614.86,0.00014794,2]
[398100868,1765365043852,-985.23,0.00014794,2]
[398100869,1765365043863,-500.0,0.00014794,2]
[398100870,1765365043874,-520.52,0.00014794,2]
[398100871,1765365043885,-381.62,0.00014794,2]
[398100872,1765365043897,-500.0,0.00014794,2]
[398100873,1765365043907,-500.0,0.00014794,2]
[398100874,1765365043918,-608.4,0.00014794,2]
[398100875,1765365043929,-515.36,0.00014794,2]
[398100876,1765365043940,-500.0,0.00014794,2]
[398100877,1765365043951,-402.82,0.00014794,2]
[398100878,1765365043962,-500.0,0.00014794,2]
[398100879,1765365043974,-500.0,0.00014794,2]
[398100880,1765365043985,-575.21,0.00014794,2]
[398100881,1765365043996,-511.87,0.00014794,2]
[398100882,1765365044007,-500.0,0.00014794,2]
[398100883,1765365044018,-1490.1,0.00014794,2]
[398100884,1765365044030,-500.0,0.00014794,2]
[398100885,1765365044043,-500.0,0.00014794,2]
[398100886,1765365044059,-1156.86,0.00014794,2]
[398100887,1765365044070,-565.18,0.00014794,2]
[398100888,1765365044081,-500.0,0.00014794,2]
[398100889,1765365044093,-500.0,0.00014794,2]
[398100890,1765365044104,-604.6,0.00014794,2]
[398100891,1765365044115,-500.0,0.00014794,2]
[398100892,1765365044125,-500.0,0.00014794,2]
[398100893,1765365044136,-500.0,0.00014794,2]
[398100894,1765365044147,-500.0,0.00014794,2]
[398100895,1765365044160,-833.33,0.00014794,2]
[398100896,1765365044177,-656.72,0.00014794,2]
[398100897,1765365044188,-500.0,0.00014794,2]
[398100898,1765365044199,-500.0,0.00014794,2]
[398100899,1765365044210,-500.0,0.00014794,2]
[398100900,1765365044220,-957.74,0.00014794,2]
[398100901,1765365044232,-480.62205297,0.00014794,2]